fUSD/lending_fUSD_20240302
["ID","MTS","AMOUNT","RATE_DAILY","PERIOD"]
[316050257,1709337631141,150.0,0.00026087,120]
[316050258,1709337638636,1000.0,0.0001885,2]
[316050259,1709337763105,513.62,0.00018307,2]
[316050260,1709337993917,203.0,0.00018207,2]
[316050261,1709337998214,-151.24343155,0.00019188,2]
[316050281,1709338231426,-946.7119606,0.0001915,2]
[316050282,1709338231436,-116.45965,0.00019151,2]
[316050283,1709338231554,-292.33221619,0.00019151,2]
[316050284,1709338231564,-155.82311144,0.00019152,2]
[316050285,1709338231574,-2964.69771375,0.00019159,2]
[316050286,1709338231584,-363.90797229,0.00019159,2]
[316050287,1709338231593,-155.0,0.00019188,2]
[316050288,1709338231602,-250.0,0.00019284,2]
[316050289,1709338231612,-758.72,0.00019303,2]
[316050290,1709338231621,-747.99,0.00019305,2]
[316050291,1709338231631,-150.0,0.00019306,2]
[316050292,1709338231641,-200.0,0.00019307,2]
[316050293,1709338231651,-1092.49,0.00019307,2]
[316050294,1709338231663,-499.99,0.00019307,2]
[316050295,1709338231673,-203.0,0.00019879,4]
[316050296,1709338231683,-2550.0,0.0002,3]
[316050297,1709338231694,-158.15131056,0.00020107,2]
[316050298,1709338231704,-500.0,0.00020107,2]
[316050299,1709338231714,-150.99,0.00020107,2]
[316050300,1709338231723,-150.99,0.00020107,2]
[316050301,1709338231733,-28328.0,0.00020114,2]
[316050302,1709338231742,-250.0,0.00020152,2]
[316050303,1709338231753,-1202.85,0.00020152,2]
[316050304,1709338231764,-1000.0,0.00020162,2]
[316050305,1709338231775,-23880.0,0.00020163,2]
[316050306,1709338231784,-1376.56,0.00020164,2]
[316050307,1709338231794,-347.47,0.00020174,2]
[316050308,1709338231803,-250.0,0.00020176,2]
[316050309,1709338231813,-200.0,0.00020197,2]
[316050310,1709338231823,-150.0,0.00020228,2]
[316050311,1709338231832,-154.47,0.00020228,2]
[316050312,1709338231842,-313.32,0.00020233,2]
[316050313,1709338231852,-2228.01,0.00020233,2]
[316050314,1709338231861,-2398.89,0.00020236,2]
[316050315,1709338231871,-1901.07,0.00020236,2]
[316050316,1709338231881,-1909.61,0.00020246,2]
[316050317,1709338231894,-158.15131049,0.00020256,2]
[316050318,1709338231904,-652.53,0.00020316,2]
[316050319,1709338231913,-150.99,0.00020316,2]
[316050320,1709338231922,-174.66,0.0002034,2]
[316050321,1709338231932,-2471.67,0.0002034,2]
[316050322,1709338231941,-9329.85,0.0002034,2]
[316050323,1709338231951,-163.61,0.0002038,2]
[316050324,1709338231960,-158.15131049,0.00020406,2]
[316050325,1709338231968,-158.15131049,0.00020555,2]
[316050326,1709338231978,-150.0,0.00020563,2]
[316050327,1709338231987,-424.18,0.00020563,2]
[316050328,1709338231996,-150.0,0.00020563,2]
[316050329,1709338232005,-152.04,0.00020563,2]
[316050330,1709338232016,-513.62,0.00020571,2]
[316050331,1709338232025,-211.0,0.00020654,2]
[316050332,1709338232035,-319.26253165,0.00020654,2]
[316050333,1709338232044,-158.15131049,0.00020705,2]
[316050334,1709338232053,-153.32,0.00020744,2]
[316050335,1709338232062,-153.32,0.00020744,2]
[316050336,1709338232072,-153.32,0.00020744,2]
[316050337,1709338232081,-7172.8955,0.00020754,2]
[316050338,1709338232090,-528775.9154074,0.00020754,2]
[316050339,1709338234381,-929.0145636,0.00020754,2]
[316050340,1709338234432,-12567.12372246,0.00020754,2]
[316050341,1709338234458,-35363.28762237,0.00020754,2]
[316050344,1709338237386,-152.0,0.00020451,2]
[316050345,1709338237396,-60687.31891448,0.00020754,2]
[316050346,1709338238419,-1244.32,0.00020754,2]
[316050347,1709338238432,-1376.55592471,0.00020754,2]
[316050348,1709338238501,-4453.99086265,0.00020754,2]
[316050421,1709338239899,-337.16740778,0.00020754,2]
[316050423,1709338239911,-608.54,0.00020754,2]
[316050424,1709338240030,-1547.603748,0.00020754,2]
[316050425,1709338240042,-1365.22976733,0.00020754,2]
[316050426,1709338240053,-272.63980945,0.00020754,2]
[316050427,1709338240085,-2358.50063164,0.00020754,2]
[316050435,1709338242512,-4794.49838837,0.00020754,2]
[316050436,1709338242526,-2070.08366451,0.00020754,2]
[316050437,1709338242537,-1064.88614112,0.00020754,2]
[316050438,1709338242548,-455.24917089,0.00020754,2]
[316050439,1709338242650,-5055.7184826,0.00020754,2]
[316050440,1709338242709,-363.90797229,0.00020753,2]
[316050441,1709338242718,-139.15542321,0.00020754,2]
[316050442,1709338242887,-692.89007611,0.00020754,2]
[316050449,1709338245605,-155.0,0.00019188,2]
[316050450,1709338245615,-777.61223379,0.00020244,2]
[316050451,1709338245625,-408.79186619,0.00020753,2]
[316050452,1709338245634,-2857.78590002,0.00020754,2]
[316050453,1709338245650,-6325.54369825,0.00020754,2]
[316050454,1709338245672,-47993.94357305,0.00020754,2]
[316050455,1709338245681,-253.5555,0.00020754,2]
[316050456,1709338245691,-207.8842,0.00020754,2]
[316050457,1709338245700,-283.0082,0.00020754,2]
[316050458,1709338245710,-170.0,0.00020836,2]
[316050459,1709338245719,-158.15131049,0.00020854,2]
[316050460,1709338245729,-9073.92527145,0.00020937,2]
[316050461,1709338245739,-157.19,0.00020961,2]
[316050462,1709338245748,-158.15131049,0.00021004,2]
[316050463,1709338245758,-3427.32,0.00021096,2]
[316050464,1709338245767,-329.77,0.00021096,2]
[316050465,1709338245775,-152.0,0.00021136,2]
[316050466,1709338245787,-158.15131049,0.00021153,2]
[316050467,1709338245797,-655.18386684,0.000212,2]
[316050468,1709338245806,-802.18350442,0.00021203,2]
[316050469,1709338245816,-210.0,0.00021237,2]
[316050470,1709338245826,-154.47,0.0002124,2]
[316050471,1709338245835,-1702.33839811,0.0002127,2]
[316050472,1709338245844,-275.17759316,0.00021279,2]
[316050473,1709338245854,-153.44535668,0.00021285,2]
[316050474,1709338245864,-209.54738889,0.00021292,2]
[316050476,1709338245874,-155.08429515,0.00021294,2]
[316050478,1709338245883,-158.15131049,0.00021302,2]
[316050479,1709338245893,-166.92850393,0.00021311,2]
[316050480,1709338245903,-153.44535668,0.00021312,2]
[316050481,1709338245912,-150.22565817,0.00021328,2]
[316050482,1709338245924,-229.37591208,0.00021331,2]
[316050483,1709338245933,-153.68903149,0.00021351,2]
[316050484,1709338245943,-411.54,0.0002137,2]
[316050485,1709338245953,-625.29,0.0002137,2]
[316050486,1709338245962,-686.99,0.0002137,2]
[316050487,1709338245972,-150.0,0.0002137,2]
[316050488,1709338245981,-314.49,0.0002137,2]
[316050489,1709338245991,-150.0,0.0002137,2]
[316050490,1709338246002,-150.0,0.0002137,2]
[316050491,1709338246012,-300.0,0.0002137,2]
[316050492,1709338246022,-150.0,0.0002137,2]
[316050493,1709338246033,-345.12,0.0002137,2]
[316050494,1709338246042,-150.0,0.0002137,2]
[316050495,1709338246052,-345.12,0.0002137,2]
[316050496,1709338246062,-345.12,0.0002137,2]
[316050497,1709338246072,-147.28994794,0.0002137,2]
[316050498,1709338246084,-2.71005206,0.0002137,2]
[316050499,1709338246094,-293.5,0.0002137,2]
[316050500,1709338246103,-153.19710528,0.00021386,2]
[316050501,1709338246112,-365.11845803,0.0002139,2]
[316050502,1709338246122,-365.11845803,0.00021417,2]
[316050503,1709338246131,-1196.41990938,0.00021433,2]
[316050504,1709338246140,-51.19132722,0.00021442,2]
[316050505,1709338246152,-112.41867278,0.00021442,2]
[316050506,1709338246162,-1196.41990938,0.0002145,2]
[316050507,1709338246171,-158.15131049,0.00021452,2]
[316050508,1709338246180,-153.44535668,0.00021458,2]
[316050509,1709338246190,-153.19710528,0.00021498,2]
[316050510,1709338246199,-150.22565817,0.00021503,2]
[316050511,1709338246209,-209.54738889,0.00021508,2]
[316050512,1709338246218,-170.0,0.00021521,2]
[316050513,1709338246227,-157.36475405,0.00021536,2]
[316050514,1709338246236,-914.88657096,0.0002154,2]
[316050515,1709338246245,-203.0,0.00021551,6]
[316050516,1709338246255,-209.54738889,0.00021572,2]
[316050517,1709338246264,-961.4879354,0.0002158,2]
[316050518,1709338246273,-158.15131049,0.00021601,2]
[316050519,1709338246284,-168.00156824,0.00021604,2]
[316050520,1709338246305,-264.17268033,0.00021604,2]
[316050521,1709338255127,462.25,0.00018829,2]
[316050522,1709338261954,1458.76979005,0.00017269,2]
[316050523,1709338266850,201.0,0.00018207,2]
[316050524,1709338301518,155.0,0.00018207,2]
[316050525,1709338315511,155.0,0.00018207,2]
[316050531,1709338340027,155.0,0.00018207,2]
[316050532,1709338358542,155.0,0.00018207,2]
[316050533,1709338384469,155.0,0.00018207,2]
[316050534,1709338410283,155.0,0.00018207,2]
[316050535,1709338432124,155.0,0.00018207,2]
[316050536,1709338434898,155.0,0.00018207,2]
[316050537,1709338454121,258.01202078,0.00018207,2]
[316050540,1709338531995,1458.76979005,0.00016386,2]
[316050543,1709338549990,1458.76979005,0.00016386,2]
[316050544,1709338553781,12800.0,0.00013537,2]
[316050547,1709338572090,456.70719243,0.00016386,2]
[316050549,1709338744014,501.28,0.00018572,2]
[316050550,1709339144800,207.02605998,0.00018572,2]
[316050551,1709339167059,207.02605998,0.00018572,2]
[316050552,1709339190787,207.02605998,0.00018572,2]
[316050553,1709339214956,207.02605998,0.00018572,2]
[316050554,1709339225348,476.21,0.00018017,2]
[316050555,1709339244958,279.49737283,0.00018572,2]
[316050556,1709339263024,279.49737283,0.00018572,2]
[316050557,1709339281047,279.49737283,0.00018572,2]
[316050558,1709339296951,279.49737283,0.00018572,2]
[316050559,1709339313217,279.49737283,0.00018572,2]
[316050560,1709339335080,164.32404141,0.00018572,2]
[316050587,1709339431635,-203.0,0.00019222,2]
[316050588,1709339431644,-2964.69771375,0.00019309,2]
[316050589,1709339431653,-1150.39428576,0.0001931,2]
[316050590,1709339431703,-1007.85341034,0.0001931,2]
[316050591,1709339431713,-363.90797229,0.00019311,2]
[316050592,1709339431722,-877.68866887,0.00019319,2]
[316050593,1709339431750,-1885.68415111,0.00019319,2]
[316050594,1709339434000,-476.62718002,0.00019319,2]
[316050595,1709339434010,-158.15131049,0.00019413,2]
[316050596,1709339434019,-1818.0,0.00019805,2]
[316050597,1709339434029,-174.66,0.00019811,2]
[316050598,1709339434039,-168.88,0.00019814,2]
[316050599,1709339434048,-250.0,0.00019848,2]
[316050600,1709339434058,-157.41,0.00019911,2]
[316050601,1709339434067,-250.0,0.00019941,2]
[316050602,1709339434076,-150.0,0.00020001,2]
[316050603,1709339434085,-373.99,0.00020002,2]
[316050604,1709339434095,-500.0,0.00020032,2]
[316050605,1709339434105,-277.98,0.00020043,2]
[316050606,1709339434114,-476.21,0.00020281,2]
[316050607,1709339434124,-174.0,0.00020451,2]
[316050608,1709339434134,-158.71,0.00020506,2]
[316050609,1709339434144,-722.02,0.00020541,2]
[316050610,1709339434153,-254.46,0.00020553,2]
[316050611,1709339434163,-499.99,0.00020554,2]
[316050612,1709339434172,-879.82,0.0002057,2]
[316050613,1709339434182,-605.06,0.00020652,2]
[316050614,1709339434195,-157.41,0.00020907,2]
[316050615,1709339434205,-1305.35412645,0.00020907,2]
[316050616,1709339434215,-699.77088876,0.00020937,2]
[316050617,1709339434224,-500.0,0.0002103,2]
[316050618,1709339434234,-203.0,0.00021076,4]
[316050619,1709339434244,-3130.91,0.00021096,2]
[316050620,1709339434254,-274.8,0.00021096,2]
[316050621,1709339434264,-300.0,0.000211,2]
[316050622,1709339434274,-827.23,0.000211,2]
[316050623,1709339434286,-174.0,0.00021136,2]
[316050624,1709339434295,-150.41,0.00021192,2]
[316050625,1709339434306,-150.0,0.00021218,2]
[316050626,1709339434316,-1305.35412645,0.00021238,2]
[316050628,1709339434326,-1280.57319672,0.00021262,2]
[316050629,1709339434338,-1852.5192658,0.00021262,2]
[316050630,1709339434349,-532.02211302,0.00021262,2]
[316050633,1709339434374,-827.86249058,0.00021262,2]
[316050636,1709339434394,-907.96486691,0.00021262,2]
[316050638,1709339434406,-924.60176697,0.00021262,2]
[316050640,1709339434416,-2500.0,0.00021262,2]
[316050642,1709339434425,-1645.59378483,0.00021272,2]
[316050644,1709339434435,-153.68903149,0.0002129,2]
[316050646,1709339434445,-1068.9,0.000213,5]
[316050648,1709339434455,-154.95420953,0.0002132,2]
[316050649,1709339434464,-150.22565817,0.00021321,2]
[316050650,1709339434474,-340.7772275,0.00021357,2]
[316050651,1709339434483,-1645.59378483,0.00021358,2]
[316050652,1709339434492,-231.20324965,0.00021358,2]
[316050653,1709339434502,-188.59265,0.00021358,2]
[316050654,1709339434512,-26703.04399739,0.00021362,2]
[316050660,1709339437589,-549.48871601,0.00021362,2]
[316050661,1709339437602,-1012.623474,0.00021362,2]
[316050662,1709339437613,-360.0,0.00021362,2]
[316050663,1709339437663,-1839.24660024,0.00021362,2]
[316050664,1709339437675,-9118.6462455,0.00021362,2]
[316050665,1709339437686,-10476.3366596,0.00021362,2]
[316050666,1709339439170,-2286.32879,0.00021362,2]
[316050667,1709339439244,-147654.28551726,0.00021362,2]
[316050668,1709339439257,-155.08429515,0.00021365,2]
[316050669,1709339439274,-189.12195162,0.00021365,2]
[316050670,1709339439284,-1645.59378483,0.00021366,2]
[316050671,1709339439295,-188.59265,0.00021368,2]
[316050672,1709339439305,-867.47578172,0.00021397,2]
[316050673,1709339439316,-172.14679896,0.00021418,2]
[316050674,1709339439325,-153.68903149,0.00021428,2]
[316050675,1709339439335,-1102.2527738,0.00021434,2]
[316050676,1709339439345,-159.51672723,0.00021439,2]
[316050677,1709339439355,-266.00500672,0.00021448,2]
[316050678,1709339439365,-2183.06451853,0.00021451,6]
[316050679,1709339439376,-2183.06451853,0.00021468,6]
[316050680,1709339439385,-1645.59378483,0.00021469,2]
[316050681,1709339439395,-168.67469974,0.0002147,2]
[316050682,1709339439405,-2183.06451853,0.0002147,6]
[316050683,1709339439414,-2183.06451853,0.00021486,6]
[316050684,1709339439424,-1645.59378483,0.00021493,2]
[316050685,1709339439434,-407.37,0.00021512,2]
[316050686,1709339439444,-1839.38,0.00021512,2]
[316050687,1709339439453,-407.37,0.00021512,2]
[316050688,1709339439463,-406.83,0.00021512,2]
[316050689,1709339439473,-231.20324965,0.00021521,2]
[316050690,1709339439483,-340.7772275,0.00021525,2]
[316050693,1709339439493,-424.53,0.00021556,2]
[316050695,1709339439503,-150.0,0.00021556,2]
[316050697,1709339439512,-396.15,0.00021556,2]
[316050699,1709339439521,-151.72024705,0.00021565,2]
[316050701,1709339439530,-340.7772275,0.00021574,2]
[316050703,1709339439540,-153.32,0.0002159,2]
[316050705,1709339439550,-1000.0,0.000216,2]
[316050707,1709339439559,-1000.0,0.000216,2]
[316050709,1709339439568,-2202.31631669,0.000216,2]
[316050711,1709339439577,-2000.0,0.00021604,2]
[316050713,1709339439587,-200.0,0.00021604,2]
[316050715,1709339439596,-200.0,0.00021604,2]
[316050717,1709339439606,-2000.0,0.00021604,2]
[316050719,1709339439616,-200.0,0.00021604,2]
[316050721,1709339439625,-153.44535668,0.00021636,2]
[316050723,1709339439635,-172.21,0.00021653,2]
[316050725,1709339439645,-157.19,0.0002166,2]
[316050727,1709339439655,-153.68903149,0.00021672,2]
[316050729,1709339439664,-1305.35412645,0.00021693,2]
[316050731,1709339439673,-1000.0,0.00021697,2]
[316050733,1709339439683,-19612.3177,0.00021698,2]
[316050736,1709339439693,-1000.0,0.00021698,2]
[316050738,1709339439703,-155.1820296,0.00021704,2]
[316050740,1709339439712,-188.59265,0.00021707,2]
[316050742,1709339439722,-1102.2527738,0.00021719,2]
[316050744,1709339439731,-154.95420953,0.00021722,2]
[316050746,1709339439740,-744.29,0.00021725,2]
[316050748,1709339439749,-262.56809437,0.00021729,2]
[316050750,1709339439759,-172.04723256,0.00021732,2]
[316050752,1709339439769,-1645.59378483,0.00021738,2]
[316050754,1709339439778,-867.47578172,0.00021752,2]
[316050756,1709339439788,-154.95420953,0.00021772,2]
[316050758,1709339439798,-159.51672723,0.00021773,2]
[316050760,1709339439807,-172.14679896,0.00021778,2]
[316050763,1709339439817,-628.47886136,0.00021796,2]
[316050765,1709339439827,-395.98512977,0.00021797,2]
[316050767,1709339439836,-136210.90818964,0.00021798,2]
[316050769,1709339439846,-997.67,0.000218,5]
[316050771,1709339439855,-70924.46237267,0.000218,2]
[316050773,1709339439864,-5000.0,0.000218,2]
[316050775,1709339439873,-1000.0,0.000218,2]
[316050777,1709339439883,-249.10988376,0.00021805,2]
[316050779,1709339439893,-5000.0,0.00021817,2]
[316050781,1709339439904,-5000.0,0.00021817,2]
[316050783,1709339439913,-2183.7983,0.00021817,2]
[316050785,1709339439923,-205.76133975,0.00021817,2]
[316050788,1709339439933,-177.14176875,0.00021817,2]
[316050790,1709339439942,-12067.68118207,0.00021817,2]
[316050792,1709339439952,-183.10475445,0.00021817,2]
[316050794,1709339439961,-164.78230146,0.00021817,2]
[316050796,1709339439971,-2000.0,0.0002182,2]
[316050798,1709339439981,-200.0,0.0002182,2]
[316050800,1709339439990,-2000.0,0.0002182,2]
[316050802,1709339439999,-200.0,0.0002182,2]
[316050804,1709339440009,-152.0,0.00021821,2]
[316050806,1709339440018,-174.0,0.00021821,2]
[316050808,1709339440028,-167.95876528,0.00021826,2]
[316050810,1709339440037,-154.04788888,0.00021872,2]
[316050812,1709339440048,-164.78230144,0.00021884,2]
[316050814,1709339440058,-12154.55466943,0.00021888,2]
[316050816,1709339440068,-14794.3305681,0.0002189,2]
[316050818,1709339440078,-12067.68118207,0.00021897,2]
[316050820,1709339440088,-1000.0,0.00021899,2]
[316050822,1709339440098,-172.14679896,0.00021899,2]
[316050824,1709339440108,-15253.0,0.000219,2]
[316050827,1709339440119,-4595.0,0.000219,2]
[316050829,1709339440129,-5500.0,0.000219,2]
[316050831,1709339440139,-508.49172606,0.000219,2]
[316050833,1709339440148,-6000.0,0.000219,2]
[316050835,1709339440158,-158.15131049,0.000219,2]
[316050837,1709339440168,-600.0,0.000219,2]
[316050839,1709339440178,-478.0,0.000219,2]
[316050841,1709339440188,-222.0,0.000219,2]
[316050843,1709339440198,-157.41,0.00021902,2]
[316050845,1709339440208,-200.0,0.00021905,2]
[316050847,1709339440218,-153.32,0.00021907,2]
[316050849,1709339440228,-153.44535668,0.00021914,2]
[316050851,1709339440238,-75586.40069978,0.00021917,4]
[316050853,1709339440248,-416.94114095,0.00021917,2]
[316050855,1709339440258,-500.0,0.00021917,2]
[316050857,1709339440268,-500.0,0.00021917,2]
[316050859,1709339440277,-500.0,0.00021917,2]
[316050861,1709339440289,-500.0,0.00021917,2]
[316050863,1709339440299,-500.0,0.00021917,2]
[316050866,1709339440310,-500.0,0.00021917,2]
[316050868,1709339440320,-500.0,0.00021917,2]
[316050870,1709339440330,-622.93,0.00021917,2]
[316050872,1709339440341,-500.0,0.00021917,2]
[316050874,1709339440352,-500.0,0.00021917,2]
[316050876,1709339440365,-500.0,0.00021917,2]
[316050878,1709339440376,-500.0,0.00021917,2]
[316050880,1709339440386,-500.0,0.00021917,2]
[316050882,1709339440396,-500.0,0.00021917,2]
[316050885,1709339440406,-500.0,0.00021917,2]
[316050887,1709339440416,-500.0,0.00021917,2]
[316050889,1709339440425,-500.0,0.00021917,2]
[316050891,1709339440435,-500.0,0.00021917,2]
[316050893,1709339440444,-500.0,0.00021917,2]
[316050895,1709339440453,-500.0,0.00021917,2]
[316050897,1709339440463,-500.0,0.00021917,2]
[316050899,1709339440473,-500.0,0.00021917,2]
[316050901,1709339440483,-500.0,0.00021917,2]
[316050903,1709339440492,-500.0,0.00021917,2]
[316050905,1709339440502,-500.0,0.00021917,2]
[316050907,1709339440511,-500.0,0.00021917,2]
[316050909,1709339440521,-500.0,0.00021917,2]
[316050911,1709339440531,-500.0,0.00021917,2]
[316050913,1709339440543,-500.0,0.00021917,2]
[316050915,1709339440553,-500.0,0.00021917,2]
[316050917,1709339440563,-500.0,0.00021917,2]
[316050927,1709339440645,-500.0,0.00021917,2]
[316050929,1709339440655,-500.0,0.00021917,2]
[316050931,1709339440665,-500.0,0.00021917,2]
[316050933,1709339440675,-500.0,0.00021917,2]
[316050935,1709339440685,-500.0,0.00021917,2]
[316050937,1709339440694,-500.0,0.00021917,2]
[316050939,1709339440703,-500.0,0.00021917,2]
[316050941,1709339440712,-500.0,0.00021917,2]
[316050943,1709339440722,-465.74836122,0.00021917,2]
[316050945,1709339440732,-500.0,0.00021917,2]
[316050947,1709339440744,-500.0,0.00021917,2]
[316050949,1709339440753,-500.0,0.00021917,2]
[316050951,1709339440764,-500.0,0.00021917,2]
[316050953,1709339440775,-500.0,0.00021917,2]
[316050956,1709339440786,-500.0,0.00021917,2]
[316050958,1709339440797,-500.0,0.00021917,2]
[316050960,1709339440806,-500.0,0.00021917,2]
[316050961,1709339440815,-500.0,0.00021917,2]
[316050962,1709339440824,-500.0,0.00021917,2]
[316050963,1709339440834,-500.0,0.00021917,2]
[316050964,1709339440843,-530.95,0.00021917,2]
[316050965,1709339440852,-500.0,0.00021917,2]
[316050966,1709339440861,-500.0,0.00021917,2]
[316050967,1709339440870,-500.0,0.00021917,2]
[316050968,1709339440879,-500.0,0.00021917,2]
[316050969,1709339440888,-500.0,0.00021917,2]
[316050970,1709339440897,-500.0,0.00021917,2]
[316050972,1709339440907,-500.0,0.00021917,2]
[316050974,1709339440916,-500.0,0.00021917,2]
[316050976,1709339440926,-500.0,0.00021917,2]
[316050978,1709339440935,-500.0,0.00021917,2]
[316050980,1709339440945,-500.0,0.00021917,2]
[316050982,1709339440954,-500.0,0.00021917,2]
[316050984,1709339440964,-500.0,0.00021917,2]
[316050986,1709339440973,-500.0,0.00021917,2]
[316050988,1709339440982,-500.0,0.00021917,2]
[316050990,1709339440991,-500.0,0.00021917,2]
[316050992,1709339441001,-500.0,0.00021917,2]
[316050994,1709339441010,-500.0,0.00021917,2]
[316050996,1709339441020,-500.0,0.00021917,2]
[316050998,1709339441029,-500.0,0.00021917,2]
[316051000,1709339441039,-500.0,0.00021917,2]
[316051002,1709339441048,-521.46839465,0.00021917,2]
[316051004,1709339441058,-500.0,0.00021917,2]
[316051006,1709339441067,-500.0,0.00021917,2]
[316051008,1709339441077,-500.0,0.00021917,2]
[316051010,1709339441086,-500.0,0.00021917,2]
[316051012,1709339441096,-500.0,0.00021917,2]
[316051014,1709339441105,-628.8116268,0.00021917,2]
[316051016,1709339441114,-500.0,0.00021917,2]
[316051018,1709339441123,-658.75,0.00021917,2]
[316051020,1709339441132,-586.18,0.00021917,2]
[316051022,1709339441142,-500.0,0.00021917,2]
[316051024,1709339441151,-500.0,0.00021917,2]
[316051026,1709339441161,-500.0,0.00021917,2]
[316051028,1709339441170,-500.0,0.00021917,2]
[316051031,1709339441180,-499.19492064,0.00021917,2]
[316051033,1709339441190,-500.0,0.00021917,2]
[316051035,1709339441199,-500.0,0.00021917,2]
[316051037,1709339441209,-500.0,0.00021917,2]
[316051039,1709339441218,-500.0,0.00021917,2]
[316051041,1709339441228,-500.0,0.00021917,2]
[316051043,1709339441237,-500.0,0.00021917,2]
[316051045,1709339441246,-500.0,0.00021917,2]
[316051047,1709339441256,-571.68,0.00021917,2]
[316051049,1709339441266,-500.0,0.00021917,2]
[316051051,1709339441278,-500.0,0.00021917,2]
[316051053,1709339441289,-500.0,0.00021917,2]
[316051055,1709339441299,-500.0,0.00021917,2]
[316051057,1709339441308,-500.0,0.00021917,2]
[316051059,1709339441318,-500.0,0.00021917,2]
[316051061,1709339441328,-500.0,0.00021917,2]
[316051063,1709339441337,-500.0,0.00021917,2]
[316051065,1709339441347,-500.0,0.00021917,2]
[316051067,1709339441358,-205.56691425,0.00021917,2]
[316051069,1709339441369,-184.06610507,0.00021917,2]
[316051071,1709339441379,-500.0,0.00021917,2]
[316051073,1709339441388,-500.0,0.00021917,2]
[316051075,1709339441398,-509.72135468,0.00021917,2]
[316051077,1709339441408,-500.0,0.00021917,2]
[316051079,1709339441418,-500.0,0.00021917,2]
[316051081,1709339441427,-500.0,0.00021917,2]
[316051083,1709339441437,-500.0,0.00021917,2]
[316051085,1709339441446,-500.0,0.00021917,2]
[316051087,1709339441455,-506.80717242,0.00021917,2]
[316051089,1709339441464,-500.0,0.00021917,2]
[316051092,1709339441474,-500.0,0.00021917,2]
[316051094,1709339441484,-500.0,0.00021917,2]
[316051096,1709339441493,-500.0,0.00021917,2]
[316051098,1709339441502,-500.0,0.00021917,2]
[316051100,1709339441511,-500.0,0.00021917,2]
[316051102,1709339441520,-500.0,0.00021917,2]
[316051104,1709339441530,-566.29,0.00021917,2]
[316051106,1709339441540,-374.28280951,0.00021917,2]
[316051108,1709339441549,-271.92463141,0.00021917,2]
[316051110,1709339441559,-513.58,0.00021917,2]
[316051112,1709339441569,-500.0,0.00021917,2]
[316051114,1709339441578,-500.0,0.00021917,2]
[316051116,1709339441587,-500.0,0.00021917,2]
[316051118,1709339441597,-500.0,0.00021917,2]
[316051120,1709339441606,-500.0,0.00021917,2]
[316051122,1709339441615,-500.0,0.00021917,2]
[316051124,1709339441624,-500.0,0.00021917,2]
[316051126,1709339441633,-500.0,0.00021917,2]
[316051128,1709339441643,-500.0,0.00021917,2]
[316051130,1709339441652,-500.0,0.00021917,2]
[316051132,1709339441661,-500.0,0.00021917,2]
[316051134,1709339441670,-582.61247663,0.00021917,2]
[316051136,1709339441679,-500.0,0.00021917,2]
[316051138,1709339441688,-500.0,0.00021917,2]
[316051140,1709339441698,-680.6,0.00021917,2]
[316051142,1709339441707,-704.35,0.00021917,2]
[316051144,1709339441716,-500.0,0.00021917,2]
[316051146,1709339441726,-500.0,0.00021917,2]
[316051147,1709339441735,-500.0,0.00021917,2]
[316051149,1709339441744,-500.0,0.00021917,2]
[316051151,1709339441753,-713.5,0.00021917,2]
[316051153,1709339441762,-500.0,0.00021917,2]
[316051155,1709339441771,-500.0,0.00021917,2]